Workbook

Sheet FORMULIER
B2: Financieel verantwoordingsformulier LEKP 2023-2024
B4: Selecteer uw gemeente: | C4: HOOGSTRATEN | F4: Cofinancieringsdrempel:
B5: KBO-nummer: | C5: =IFERROR(VLOOKUP(C4,Tabel2[[Gemeente]:[KBO]],2,FALSE),"") -> 0207502202 | F5: =IFERROR(VLOOKUP(C4,Tabel2[#All],7,FALSE),"Selecteer eerst uw gemeente") -> 173876.72
B7: Gelieve in onderstaande tabel alle acties in het kader van de LEKP-doelstellingen die in 2023 en 2024 werden uitgevoerd te registreren. Kies per actie uit de keuzelijst op welke doelstelling en welk jaar de actie betrekking heeft en vervolgens de uitgave van deze actie. Geef ten slotte een korte toelichting bij elke uitgave. Optioneel is het mogelijk om een verwijzing naar de interne boekhouding van de gemeente toe te voegen.
B9: (!) Opgelet! Als een actie betrekking heeft op meerdere LEKP-doelstellingen, gelieve dan in het dropdown-menu alle doelstellingen te selecteren waarop de actie betrekking heeft. Dit doe je door het drop-downmenu telkens te openen en een andere doelstelling aan te klikken.
B10: (!) Opgelet! Onder de doelstelling 'Andere' horen geen acties die niets te maken hebben met de LEKP-doelstellingen.
B12: Naam actie | C12: LEKP-Doelstellling | D12: Jaar | E12: Uitgave (€) | F12: Toelichting bij uitgave | G12: Referentie boekhouding
B13: Studiewerk warmtenet Stede Akkers | C13: Coöperatieve hernieuwbare energieprojecten | D13: 2024 | E13: 35090 | F13: Expertise, advies en studiewerk rond partnerschap en businesscase warmtenet stede akkers met restwarmte | G13: Actie 4/1/1/3
B14: Trajectbegeleiding warmtenet Stede Akkers | C14: Coöperatieve hernieuwbare energieprojecten | D14: 2024 | E14: 7480 | F14: Begeleiding en expertise rond partnerschap en businesscase warmtenetten, waaronder Stede Akkers met restwarmte en potentieel Thermische energie uit drinkwater | G14: Actie 4/1/1/3
B15: Vier deelwagens | C15: Deelwagens | D15: 2024 | E15: 33976.8 | F15: Introductie van vier deelwagens in Hoogstraten | G15: Actie 3/2/1/1
B16: Laadpalen | C16: Laadpunten | D16: 2024 | E16: 20029.53 | F16: Vijf laadpunten, voor oa de deelwagens en op eigen terrein (open voor burgers) | G16: Actie 3/2/1/1
B17: Tiny forests | C17: Natuurgroenperken | D17: 2024 | E17: 13400 | F17: Samenwerking voor de aanplant van twee tiny forests | G17: Actie 3/2/2/1
B18: Energiemaatregelen stadsgebouwen | C18: Reductie CO2 uitstoot lokaal patrimonium | D18: 2024 | E18: 873494 | F18: Energiebesparende maatregelen volgens het vastgoedplan; dakisolatie, PV panelen, relighting,… | G18: Actie 4/1/2/1
B19: Verledding openbare verlichting | C19: VerLEDding | D19: 2024 | E19: 162980 | F19: Verledding van de openbare verlichting, status: 56% | G19: actie 4/1/2/2
B20: Vastgoedplan | C20: Reductie CO2 uitstoot lokaal patrimonium | D20: 2024 | E20: 14723.28 | F20: Begeleiding bij de opmaak van een strategische vastgoedplan (eindfase) | G20: actie 4/1/2/1
B21: Huisbezoeker woonloket | C21: Personeelskosten | D21: 2024 | E21: 56547.98 | F21: Huisbezoeken en groepsactiviteiten voor gezinnen ivm energiebesparing en hernieuwbare energie | G21: Actie 1/2/3/1
B22: Beveiligen fietsroutes en doorsteken | C22: Fietspaden | D22: 2024 | E22: 39264.45 | F22: Beveiligen van fietsroutes en doorsteken door oa scheiden van verkeersstromen en meer ruimte te maken aan oversteken. | G22: Actie 1/3/2/1
F45: Cofinancieringscheck:
B46: TOTAAL | E46: =SUM(E13:E43) -> 1256986.04 | F46: =IFERROR(IF(E46>VLOOKUP(C4,Tabel2[#All],7,FALSE), "OK", "NIET OK"),"") -> OK
B48: =IFERROR(IF(F46="OK", "U heeft voor de LEKP-subsidie voldoende uitgaven verantwoord om aan de cofinancieringsvoorwaarde te voldoen","! Opgelet: u heeft voor de LEKP-subsidie TE WEINIG uitgaven verantwoord om aan de cofinancieringsvolwaarde te voldoen."),"") -> U heeft voor de LEKP-subsidie voldoende uitgaven verantwoord om aan de cofinancieringsvoorwaarde te voldoen

Sheet Retour (hidden)
B2: GEMEENTE | C2: =+FORMULIER!C4 -> HOOGSTRATEN | F2: Trekkingsrecht: | G2: =VLOOKUP(FORMULIER!C4,BRONDATA!$F$3:$L$296,6,FALSE) -> 86938.36
B4: LEKP - DOELSTELLINGEN | C4: Totaal uitgaven | D4: Uitgaven 2023 | E4: Uitgaven 2024 | F4: Aandeel (%) | G4: Hefboomeffect
B5: WERF 1: Vergroening | C5: =SUM(D5:E5) -> 13400 | D5: =SUM(D6:D8) -> 0 | E5: =SUM(E6:E8) -> 13400 | F5: =IFERROR(C5/$C$36,0) -> 0.0106604207 | G5: =C5/$G$2 -> 0.154132192
B6: Bomen | C6: =SUMIF(Tabel811[[#All],[LEKP-Doelstellling]],BRONDATA!B3,Tabel811[[#All],[Uitgave (€)]]) -> 0 | D6: =SUMIFS(Tabel811[[#All],[Uitgave (€)]],Tabel811[[#All],[Jaar]],"2023",Tabel811[[#All],[LEKP-Doelstellling]],BRONDATA!B3) -> 0 | E6: =SUMIFS(Tabel811[[#All],[Uitgave (€)]],Tabel811[[#All],[Jaar]],"2024",Tabel811[[#All],[LEKP-Doelstellling]],BRONDATA!B3) -> 0 | F6: =IFERROR(C6/$C$36,0) -> 0 | G6: =C6/$G$2 -> 0
B7: Hagen en Geveltuinbeplanting | C7: =SUMIF(Tabel811[[#All],[LEKP-Doelstellling]],BRONDATA!B4,Tabel811[[#All],[Uitgave (€)]]) -> 0 | D7: =SUMIFS(Tabel811[[#All],[Uitgave (€)]],Tabel811[[#All],[Jaar]],"2023",Tabel811[[#All],[LEKP-Doelstellling]],BRONDATA!B4) -> 0 | E7: =SUMIFS(Tabel811[[#All],[Uitgave (€)]],Tabel811[[#All],[Jaar]],"2024",Tabel811[[#All],[LEKP-Doelstellling]],BRONDATA!B4) -> 0 | F7: =IFERROR(C7/$C$36,0) -> 0 | G7: =C7/$G$2 -> 0
B8: Natuurgroenperken | C8: =SUMIF(Tabel811[[#All],[LEKP-Doelstellling]],BRONDATA!B5,Tabel811[[#All],[Uitgave (€)]]) -> 13400 | D8: =SUMIFS(Tabel811[[#All],[Uitgave (€)]],Tabel811[[#All],[Jaar]],"2023",Tabel811[[#All],[LEKP-Doelstellling]],BRONDATA!B5) -> 0 | E8: =SUMIFS(Tabel811[[#All],[Uitgave (€)]],Tabel811[[#All],[Jaar]],"2024",Tabel811[[#All],[LEKP-Doelstellling]],BRONDATA!B5) -> 13400 | F8: =IFERROR(C8/$C$36,0) -> 0.0106604207 | G8: =C8/$G$2 -> 0.154132192
B10: WERF 2: Verrijk je wijk | C10: =SUM(D10:E10) -> 42570 | D10: =SUM(D11:D15) -> 0 | E10: =SUM(E11:E15) -> 42570 | F10: =IFERROR(C10/$C$36,0) -> 0.03386672457 | G10: =C10/$G$2 -> 0.4896572698
B11: Collectief georganiseerde energiebesparende renovaties | C11: =SUM(D11:E11) -> 0 | D11: =SUMIFS(Tabel811[[#All],[Uitgave (€)]],Tabel811[[#All],[Jaar]],"2023",Tabel811[[#All],[LEKP-Doelstellling]],BRONDATA!B6) -> 0 | E11: =SUMIFS(Tabel811[[#All],[Uitgave (€)]],Tabel811[[#All],[Jaar]],"2024",Tabel811[[#All],[LEKP-Doelstellling]],BRONDATA!B6) -> 0 | F11: 0 | G11: 0
B12: coöperatieve/participatieve hernieuwbare energieprojecten | C12: =SUM(D12:E12) -> 42570 | D12: =SUMIFS(Tabel811[[#All],[Uitgave (€)]],Tabel811[[#All],[Jaar]],"2023",Tabel811[[#All],[LEKP-Doelstellling]],BRONDATA!B7) -> 0 | E12: =SUMIFS(Tabel811[[#All],[Uitgave (€)]],Tabel811[[#All],[Jaar]],"2024",Tabel811[[#All],[LEKP-Doelstellling]],BRONDATA!B7) -> 42570 | F12: 0.03386672457 | G12: 0.4896572698
B13: Energiegemeenschappen | C13: 0 | D13: =SUMIFS(Tabel811[[#All],[Uitgave (€)]],Tabel811[[#All],[Jaar]],"2023",Tabel811[[#All],[LEKP-Doelstellling]],BRONDATA!B8) -> 0 | E13: =SUMIFS(Tabel811[[#All],[Uitgave (€)]],Tabel811[[#All],[Jaar]],"2024",Tabel811[[#All],[LEKP-Doelstellling]],BRONDATA!B8) -> 0 | F13: 0 | G13: 0
B14: Klimaattafels | C14: 0 | D14: =SUMIFS(Tabel811[[#All],[Uitgave (€)]],Tabel811[[#All],[Jaar]],"2023",Tabel811[[#All],[LEKP-Doelstellling]],BRONDATA!B9) -> 0 | E14: =SUMIFS(Tabel811[[#All],[Uitgave (€)]],Tabel811[[#All],[Jaar]],"2024",Tabel811[[#All],[LEKP-Doelstellling]],BRONDATA!B9) -> 0 | F14: 0 | G14: 0
B15: Wijkverbeteringscontract | C15: 0 | D15: =SUMIFS(Tabel811[[#All],[Uitgave (€)]],Tabel811[[#All],[Jaar]],"2023",Tabel811[[#All],[LEKP-Doelstellling]],BRONDATA!B19) -> 0 | E15: =SUMIFS(Tabel811[[#All],[Uitgave (€)]],Tabel811[[#All],[Jaar]],"2024",Tabel811[[#All],[LEKP-Doelstellling]],BRONDATA!B19) -> 0 | F15: 0 | G15: 0
B17: WERF 3: Mobiliteit | C17: =SUM(D17:E17) -> 93270.78 | D17: =SUM(D18:D20) -> 0 | E17: 93270.78 | F17: =IFERROR(C17/$C$36,0) -> 0.07420192192 | G17: =C17/$G$2 -> 1.072838043
B18: Deelwagens | C18: =SUM(D18:E18) -> 33976.8 | D18: =SUMIFS(Tabel811[[#All],[Uitgave (€)]],Tabel811[[#All],[Jaar]],"2023",Tabel811[[#All],[LEKP-Doelstellling]],BRONDATA!B10) -> 0 | E18: =SUMIFS(Tabel811[[#All],[Uitgave (€)]],Tabel811[[#All],[Jaar]],"2024",Tabel811[[#All],[LEKP-Doelstellling]],BRONDATA!B10) -> 33976.8 | F18: =IFERROR(C18/$C$36,0) -> 0.02703037179 | G18: =C18/$G$2 -> 0.3908148256
B19: Fietspaden | C19: =SUM(D19:E19) -> 39264.45 | D19: =SUMIFS(Tabel811[[#All],[Uitgave (€)]],Tabel811[[#All],[Jaar]],"2023",Tabel811[[#All],[LEKP-Doelstellling]],BRONDATA!B11) -> 0 | E19: =SUMIFS(Tabel811[[#All],[Uitgave (€)]],Tabel811[[#All],[Jaar]],"2024",Tabel811[[#All],[LEKP-Doelstellling]],BRONDATA!B11) -> 39264.45 | F19: =IFERROR(C19/$C$36,0) -> 0.03123698176 | G19: =C19/$G$2 -> 0.4516355036
B20: Laadpunten | C20: 20029.53 | D20: =SUMIFS(Tabel811[[#All],[Uitgave (€)]],Tabel811[[#All],[Jaar]],"2023",Tabel811[[#All],[LEKP-Doelstellling]],BRONDATA!B12) -> 0 | E20: =SUMIFS(Tabel811[[#All],[Uitgave (€)]],Tabel811[[#All],[Jaar]],"2024",Tabel811[[#All],[LEKP-Doelstellling]],BRONDATA!B12) -> 20029.53 | F20: =IFERROR(C20/$C$36,0) -> 0.01593456837 | G20: =C20/$G$2 -> 0.2303877138
B22: WERF 4: Droogte | C22: =SUM(D22:E22) -> 0 | D22: =SUM(D23:D24) -> 0 | E22: =SUM(E23:E24) -> 0 | F22: =IFERROR(C22/$C$36,0) -> 0 | G22: =C22/$G$2 -> 0
B23: Hemelwateropvang | C23: =SUM(D23:E23) -> 0 | D23: =SUMIFS(Tabel811[[#All],[Uitgave (€)]],Tabel811[[#All],[Jaar]],"2023",Tabel811[[#All],[LEKP-Doelstellling]],BRONDATA!B13) -> 0 | E23: =SUMIFS(Tabel811[[#All],[Uitgave (€)]],Tabel811[[#All],[Jaar]],"2024",Tabel811[[#All],[LEKP-Doelstellling]],BRONDATA!B13) -> 0 | F23: =IFERROR(C23/$C$36,0) -> 0 | G23: =C23/$G$2 -> 0
B24: Ontharding | C24: =SUM(D24:E24) -> 0 | D24: =SUMIFS(Tabel811[[#All],[Uitgave (€)]],Tabel811[[#All],[Jaar]],"2023",Tabel811[[#All],[LEKP-Doelstellling]],BRONDATA!B14) -> 0 | E24: =SUMIFS(Tabel811[[#All],[Uitgave (€)]],Tabel811[[#All],[Jaar]],"2024",Tabel811[[#All],[LEKP-Doelstellling]],BRONDATA!B14) -> 0 | F24: =IFERROR(C24/$C$36,0) -> 0 | G24: =C24/$G$2 -> 0
B26: ALGEMENE DOELSTELLINGEN | C26: =SUM(D26:E26) -> 1051197.28 | D26: =SUM(D27:D30) -> 0 | E26: =SUM(E27:E30) -> 1051197.28 | F26: =IFERROR(C26/$C$36,0) -> 0.8362839734 | G26: =C26/$G$2 -> 12.09129411
B27: VerLEDding | C27: =SUM(D27:E27) -> 162980 | D27: =SUMIFS(Tabel811[[#All],[Uitgave (€)]],Tabel811[[#All],[Jaar]],"2023",Tabel811[[#All],[LEKP-Doelstellling]],BRONDATA!B18) -> 0 | E27: =SUMIFS(Tabel811[[#All],[Uitgave (€)]],Tabel811[[#All],[Jaar]],"2024",Tabel811[[#All],[LEKP-Doelstellling]],BRONDATA!B18) -> 162980 | F27: =IFERROR(C27/$C$36,0) -> 0.1296593556 | G27: 1.874661542
B28: Lokaal warmte- en sloopbeleid | C28: =SUM(D28:E28) -> 0 | D28: =SUMIFS(Tabel811[[#All],[Uitgave (€)]],Tabel811[[#All],[Jaar]],"2023",Tabel811[[#All],[LEKP-Doelstellling]],BRONDATA!B16) -> 0 | E28: =SUMIFS(Tabel811[[#All],[Uitgave (€)]],Tabel811[[#All],[Jaar]],"2024",Tabel811[[#All],[LEKP-Doelstellling]],BRONDATA!B16) -> 0 | F28: =IFERROR(C28/$C$36,0) -> 0 | G28: 0
B29: Reductie CO2 uitstoot lokaal patrimonium | C29: 888217.28 | D29: =SUMIFS(Tabel811[[#All],[Uitgave (€)]],Tabel811[[#All],[Jaar]],"2023",Tabel811[[#All],[LEKP-Doelstellling]],BRONDATA!B17) -> 0 | E29: =SUMIFS(Tabel811[[#All],[Uitgave (€)]],Tabel811[[#All],[Jaar]],"2024",Tabel811[[#All],[LEKP-Doelstellling]],BRONDATA!B17) -> 888217.28 | F29: =IFERROR(C29/$C$36,0) -> 0.7066246177 | G29: 10.21663257
B30: Energiebespraring lokaal patrimonium | C30: 0 | D30: =SUMIFS(Tabel811[[#All],[Uitgave (€)]],Tabel811[[#All],[Jaar]],"2023",Tabel811[[#All],[LEKP-Doelstellling]],BRONDATA!B15) -> 0 | E30: =SUMIFS(Tabel811[[#All],[Uitgave (€)]],Tabel811[[#All],[Jaar]],"2024",Tabel811[[#All],[LEKP-Doelstellling]],BRONDATA!B15) -> 0 | F30: =IFERROR(C30/$C$36,0) -> 0 | G30: 0
B32: Personeelskosten | C32: =SUM(D32:E32) -> 56547.98 | D32: =SUMIFS(Tabel811[[#All],[Uitgave (€)]],Tabel811[[#All],[Jaar]],"2023",Tabel811[[#All],[LEKP-Doelstellling]],BRONDATA!B20) -> 0 | E32: =SUMIFS(Tabel811[[#All],[Uitgave (€)]],Tabel811[[#All],[Jaar]],"2024",Tabel811[[#All],[LEKP-Doelstellling]],BRONDATA!B20) -> 56547.98 | F32: =IFERROR(C32/C36,0) -> 0.04498695944 | G32: =C32/G2 -> 0.6504376204
B34: ANDERE/GECOMBINEERDE UITGAVEN | C34: =C36-SUM(C5,C10,C17,C22,C26,C32) -> 0 | D34: 0 | E34: =E36-SUM(E5,E10,E17,E22,E26,E32) -> 0 | F34: =IFERROR(C34/$C$36,0) -> 0 | G34: =C34/$G$2 -> 0
B36: TOTAAL | C36: =FORMULIER!E46 -> 1256986.04 | D36: =SUMIF(Tabel811[[#All],[Jaar]],"2023",Tabel811[[#All],[Uitgave (€)]]) -> 0 | E36: =SUMIF(Tabel811[[#All],[Jaar]],"2024",Tabel811[[#All],[Uitgave (€)]]) -> 1256986.04 | F36: =IFERROR(C36/$C$36,0) -> 1 | G36: =C36/$G$2 -> 14.45835923
A38: Exportdata:
B39: =C2 -> HOOGSTRATEN | C39: =G2 -> 86938.36 | D39: =C36 -> 1256986.04 | E39: =D36 -> 0 | F39: =E36 -> 1256986.04 | G39: =E6 -> 0 | H39: =E7 -> 0 | I39: =E8 -> 13400 | J39: =E11 -> 0 | K39: =E12 -> 42570 | L39: =E13 -> 0 | M39: =E14 -> 0 | N39: =E15 -> 0 | O39: =E18 -> 33976.8 | P39: =E19 -> 39264.45 | Q39: =E20 -> 20029.53 | R39: =E23 -> 0 | S39: =E24 -> 0 | T39: =E27 -> 162980 | U39: =E28 -> 0 | V39: =E29 -> 888217.28 | W39: =E30 -> 0 | X39: =E32 -> 56547.98 | Y39: =E34 -> 0

Sheet BRONDATA (hidden)
A2: Werf | B2: Doelstelling | F2: Gemeente | G2: KBO | H2: 1.0 | I2: 2.0 | J2: 2.1 | K2: TOTAAL | L2: CofinDrempel | P2: Jaar
A3: WERF 1 | B3: Bomen | F3: AALST | G3: 0207437468 | H3: 388048.8 | I3: 135053.62 | J3: 224849.83 | K3: 747952.25 | L3: =Tabel2[[#This Row],[TOTAAL]]*2 -> 1495904.5 | P3: 2023
A4: WERF 1 | B4: Hagen en Geveltuinbeplanting | F4: AALTER | G4: 0697608063 | H4: 113128.71 | I4: 39372.48 | J4: 66090.36 | K4: 218591.55 | L4: =Tabel2[[#This Row],[TOTAAL]]*2 -> 437183.1 | P4: 2024
A5: WERF 1 | B5: Natuurgroenperken | F5: AARSCHOT | G5: 0207515464 | H5: 122953.53 | I5: 0 | J5: 0 | K5: 122953.53 | L5: =Tabel2[[#This Row],[TOTAAL]]*2 -> 245907.06
A6: WERF 2 | B6: Collectief georganiseerde energiebesparende renovaties | F6: AARTSELAAR | G6: 0207508932 | H6: 54179.38 | I6: 18856.19 | J6: 0 | K6: 73035.57 | L6: =Tabel2[[#This Row],[TOTAAL]]*2 -> 146071.14
A7: WERF 2 | B7: Coöperatieve hernieuwbare energieprojecten | F7: AFFLIGEM | G7: 0207509031 | H7: 50383.1 | I7: 0 | J7: 0 | K7: 50383.1 | L7: =Tabel2[[#This Row],[TOTAAL]]*2 -> 100766.2
A8: WERF 2 | B8: Energiegemeenschappen | F8: ALKEN | G8: 0207474882 | H8: 44792.64 | I8: 15589.3 | J8: 0 | K8: 60381.94 | L8: =Tabel2[[#This Row],[TOTAAL]]*2 -> 120763.88
A9: WERF 2 | B9: Klimaattafels | F9: ANTWERPEN | G9: 0207500123 | H9: 3305227.7 | I9: 1150326.9 | J9: 1929832.62 | K9: 6385387.22 | L9: =Tabel2[[#This Row],[TOTAAL]]*2 -> 12770774.44
A10: WERF 3 | B10: Deelwagens | F10: ANZEGEM | G10: 0207484780 | H10: 57776.01 | I10: 20107.93 | J10: 0 | K10: 77883.94 | L10: =Tabel2[[#This Row],[TOTAAL]]*2 -> 155767.88
A11: WERF 3 | B11: Fietspaden | F11: ARDOOIE | G11: 0216771046 | H11: 35627.53 | I11: 0 | J11: 0 | K11: 35627.53 | L11: =Tabel2[[#This Row],[TOTAAL]]*2 -> 71255.06
A12: WERF 3 | B12: Laadpunten | F12: ARENDONK | G12: 0207505368 | H12: 52686.43 | I12: 18336.59 | J12: 30760.71 | K12: 101783.73 | L12: =Tabel2[[#This Row],[TOTAAL]]*2 -> 203567.46
A13: WERF 4 | B13: Hemelwateropvang voor infiltratie, buffering of hergebruik | F13: AS | G13: 0207465083 | H13: 32308.82 | I13: 11244.52 | J13: 0 | K13: 43553.34 | L13: =Tabel2[[#This Row],[TOTAAL]]*2 -> 87106.68
A14: WERF 4 | B14: Ontharding | F14: ASSE | G14: 0207506259 | H14: 132448.67 | I14: 46096.45 | J14: 75915.62 | K14: 254460.74 | L14: =Tabel2[[#This Row],[TOTAAL]]*2 -> 508921.48
A15: AD | B15: Energiebesparing lokaal patrimonium | F15: ASSENEDE | G15: 0207447861 | H15: 57235.54 | I15: 19919.83 | J15: 33347.31 | K15: 110502.68 | L15: =Tabel2[[#This Row],[TOTAAL]]*2 -> 221005.36
A16: AD | B16: Lokaal warmte- en sloopbeleid | F16: AVELGEM | G16: 0207485770 | H16: 40381.8 | I16: 0 | J16: 0 | K16: 40381.8 | L16: =Tabel2[[#This Row],[TOTAAL]]*2 -> 80763.6
A17: AD | B17: Reductie CO2 uitstoot lokaal patrimonium | F17: BAARLE-HERTOG | G17: 0207509427 | H17: 11926.7 | I17: 4150.88 | J17: 0 | K17: 16077.58 | L17: =Tabel2[[#This Row],[TOTAAL]]*2 -> 32155.16
A18: AD | B18: VerLEDding | F18: BALEN | G18: 0207537042 | H18: 88833.44 | I18: 30916.93 | J18: 0 | K18: 119750.37 | L18: =Tabel2[[#This Row],[TOTAAL]]*2 -> 239500.74
A19: AD | B19: Wijkverbeteringscontracten | F19: BEERNEM | G19: 0207527936 | H19: 62206.42 | I19: 0 | J19: 0 | K19: 62206.42 | L19: =Tabel2[[#This Row],[TOTAAL]]*2 -> 124412.84
B20: Personeelskosten | F20: BEERSE | G20: 0207505764 | H20: 69926.27 | I20: 24336.62 | J20: 40561.67 | K20: 134824.56 | L20: =Tabel2[[#This Row],[TOTAAL]]*2 -> 269649.12
B21: Andere | F21: BEERSEL | G21: 0207506358 | H21: 96634.37 | I21: 33631.91 | J21: 56079.34 | K21: 186345.62 | L21: =Tabel2[[#This Row],[TOTAAL]]*2 -> 372691.24
F22: BEGIJNENDIJK | G22: 0207516058 | H22: 39386.4 | I22: 0 | J22: 0 | K22: 39386.4 | L22: =Tabel2[[#This Row],[TOTAAL]]*2 -> 78772.8
F23: BEKKEVOORT | G23: 0207516157 | H23: 25286.75 | I23: 8800.61 | J23: 0 | K23: 34087.36 | L23: =Tabel2[[#This Row],[TOTAAL]]*2 -> 68174.72
F24: BERINGEN | G24: 0207465281 | H24: 184281.17 | I24: 64135.85 | J24: 107463.29 | K24: 355880.31 | L24: =Tabel2[[#This Row],[TOTAAL]]*2 -> 711760.62
F25: BERLAAR | G25: 0207537339 | H25: 45205 | I25: 15732.81 | J25: 26475.18 | K25: 87412.99 | L25: =Tabel2[[#This Row],[TOTAAL]]*2 -> 174825.98
F26: BERLARE | G26: 0207445485 | H26: 58947.04 | I26: 20515.49 | J26: 0 | K26: 79462.53 | L26: =Tabel2[[#This Row],[TOTAAL]]*2 -> 158925.06
F27: BERTEM | G27: 0207516256 | H27: 38400.95 | I27: 0 | J27: 0 | K27: 38400.95 | L27: =Tabel2[[#This Row],[TOTAAL]]*2 -> 76801.9
F28: BEVER | G28: 0207539616 | H28: 9095.44 | I28: 0 | J28: 0 | K28: 9095.44 | L28: =Tabel2[[#This Row],[TOTAAL]]*2 -> 18190.88
F29: BEVEREN | G29: 0207462313 | H29: 189379.72 | I29: 65910.31 | J29: 0 | K29: 255290.03 | L29: =Tabel2[[#This Row],[TOTAAL]]*2 -> 510580.06
F30: BIERBEEK | G30: 0207516454 | H30: 38902.56 | I30: 0 | J30: 0 | K30: 38902.56 | L30: =Tabel2[[#This Row],[TOTAAL]]*2 -> 77805.12
F31: BILZEN | G31: 0207475377 | H31: 127143.38 | I31: 44250.04 | J31: 0 | K31: 171393.42 | L31: =Tabel2[[#This Row],[TOTAAL]]*2 -> 342786.84
F32: BLANKENBERGE | G32: 0206684927 | H32: 83428.77 | I32: 29035.93 | J32: 48971.81 | K32: 161436.51 | L32: =Tabel2[[#This Row],[TOTAAL]]*2 -> 322873.02
F33: BOCHOLT | G33: 0207471518 | H33: 54066.05 | I33: 18816.75 | J33: 0 | K33: 72882.8 | L33: =Tabel2[[#This Row],[TOTAAL]]*2 -> 145765.6
F34: BOECHOUT | G34: 0207536448 | H34: 52198.05 | I34: 18166.62 | J34: 0 | K34: 70364.67 | L34: =Tabel2[[#This Row],[TOTAAL]]*2 -> 140729.34
F35: BONHEIDEN | G35: 0207534171 | H35: 57106.54 | I35: 19874.94 | J35: 33178.88 | K35: 110160.36 | L35: =Tabel2[[#This Row],[TOTAAL]]*2 -> 220320.72
F36: BOOM | G36: 0207506952 | H36: 75658.24 | I36: 26331.53 | J36: 0 | K36: 101989.77 | L36: =Tabel2[[#This Row],[TOTAAL]]*2 -> 203979.54
F37: BOORTMEERBEEK | G37: 0207516751 | H37: 47917.75 | I37: 16676.94 | J37: 27481.91 | K37: 92076.6 | L37: =Tabel2[[#This Row],[TOTAAL]]*2 -> 184153.2
F38: BORGLOON | G38: 0206914361 | H38: 44525.12 | I38: 15496.19 | J38: 0 | K38: 60021.31 | L38: =Tabel2[[#This Row],[TOTAAL]]*2 -> 120042.62
F39: BORNEM | G39: 0207500420 | H39: 82838.18 | I39: 28830.38 | J39: 0 | K39: 111668.56 | L39: =Tabel2[[#This Row],[TOTAAL]]*2 -> 223337.12
F40: BORSBEEK | G40: 0207509229 | H40: 43976.18 | I40: 15305.14 | J40: 25410.35 | K40: 84691.67 | L40: =Tabel2[[#This Row],[TOTAAL]]*2 -> 169383.34
F41: BOUTERSEM | G41: 0207516949 | H41: 31965.56 | I41: 11125.06 | J41: 0 | K41: 43090.62 | L41: =Tabel2[[#This Row],[TOTAAL]]*2 -> 86181.24
F42: BRASSCHAAT | G42: 0206677801 | H42: 143620.64 | I42: 49984.66 | J42: 0 | K42: 193605.3 | L42: =Tabel2[[#This Row],[TOTAAL]]*2 -> 387210.6
F43: BRECHT | G43: 0207500321 | H43: 115242.16 | I43: 40108.03 | J43: 0 | K43: 155350.19 | L43: =Tabel2[[#This Row],[TOTAAL]]*2 -> 310700.38
F44: BREDENE | G44: 0207435092 | H44: 72382.8 | I44: 0 | J44: 0 | K44: 72382.8 | L44: =Tabel2[[#This Row],[TOTAAL]]*2 -> 144765.6
F45: BREE | G45: 0207471617 | H45: 64924.08 | I45: 22595.69 | J45: 37550.67 | K45: 125070.44 | L45: =Tabel2[[#This Row],[TOTAAL]]*2 -> 250140.88
F46: BRUGGE | G46: 0207528035 | H46: 571637.61 | I46: 198948.51 | J46: 334241.9 | K46: 1104828.02 | L46: =Tabel2[[#This Row],[TOTAAL]]*2 -> 2209656.04
F47: BUGGENHOUT | G47: 0207445287 | H47: 55865.08 | I47: 0 | J47: 0 | K47: 55865.08 | L47: =Tabel2[[#This Row],[TOTAAL]]*2 -> 111730.16
F48: DAMME | G48: 0207528134 | H48: 43931.55 | I48: 15289.61 | J48: 25539.75 | K48: 84760.91 | L48: =Tabel2[[#This Row],[TOTAAL]]*2 -> 169521.82
F49: DE HAAN | G49: 0216770848 | H49: 50697.61 | I49: 0 | J49: 0 | K49: 50697.61 | L49: =Tabel2[[#This Row],[TOTAAL]]*2 -> 101395.22
F50: DE PANNE | G50: 0207434597 | H50: 43315.25 | I50: 15075.12 | J50: 0 | K50: 58390.37 | L50: =Tabel2[[#This Row],[TOTAAL]]*2 -> 116780.74
F51: DE PINTE | G51: 0207450534 | H51: 40721.6 | I51: 14172.44 | J51: 23737.52 | K51: 78631.56 | L51: =Tabel2[[#This Row],[TOTAAL]]*2 -> 157263.12
F52: DEERLIJK | G52: 0207488443 | H52: 46863.94 | I52: 16310.18 | J52: 27114.52 | K52: 90288.64 | L52: =Tabel2[[#This Row],[TOTAAL]]*2 -> 180577.28
F53: DEINZE | G53: 0697608162 | H53: 177354.14 | I53: 61725.02 | J53: 103000.34 | K53: 342079.5 | L53: =Tabel2[[#This Row],[TOTAAL]]*2 -> 684159
F54: DENDERLEEUW | G54: 0207439745 | H54: 80278.04 | I54: 27939.37 | J54: 0 | K54: 108217.41 | L54: =Tabel2[[#This Row],[TOTAAL]]*2 -> 216434.82
F55: DENDERMONDE | G55: 0207445584 | H55: 188007.13 | I55: 65432.6 | J55: 109263.32 | K55: 362703.05 | L55: =Tabel2[[#This Row],[TOTAAL]]*2 -> 725406.1
F56: DENTERGEM | G56: 0207434203 | H56: 33729.9 | I56: 0 | J56: 0 | K56: 33729.9 | L56: =Tabel2[[#This Row],[TOTAAL]]*2 -> 67459.8
F57: DESSEL | G57: 0207536943 | H57: 37423.26 | I57: 13024.51 | J57: 0 | K57: 50447.77 | L57: =Tabel2[[#This Row],[TOTAAL]]*2 -> 100895.54
F58: DESTELBERGEN | G58: 0207450633 | H58: 69958.76 | I58: 0 | J58: 0 | K58: 69958.76 | L58: =Tabel2[[#This Row],[TOTAAL]]*2 -> 139917.52
F59: DIEPENBEEK | G59: 0207465974 | H59: 76834.1 | I59: 26740.77 | J59: 0 | K59: 103574.87 | L59: =Tabel2[[#This Row],[TOTAAL]]*2 -> 207149.74
F60: DIEST | G60: 0207517345 | H60: 99863.32 | I60: 0 | J60: 0 | K60: 99863.32 | L60: =Tabel2[[#This Row],[TOTAAL]]*2 -> 199726.64
F61: DIKSMUIDE | G61: 0207531894 | H61: 70345.67 | I61: 24482.58 | J61: 0 | K61: 94828.25 | L61: =Tabel2[[#This Row],[TOTAAL]]*2 -> 189656.5
F62: DILBEEK | G62: 0207507645 | H62: 165726.15 | I62: 0 | J62: 0 | K62: 165726.15 | L62: =Tabel2[[#This Row],[TOTAAL]]*2 -> 331452.3
F63: DILSEN-STOKKEM | G63: 0207471716 | H63: 83391.94 | I63: 29023.11 | J63: 48529.28 | K63: 160944.33 | L63: =Tabel2[[#This Row],[TOTAAL]]*2 -> 321888.66
F64: DROGENBOS | G64: 0207484186 | H64: 22202.74 | I64: 0 | J64: 0 | K64: 22202.74 | L64: =Tabel2[[#This Row],[TOTAAL]]*2 -> 44405.48
F65: DUFFEL | G65: 0207534864 | H65: 67253.58 | I65: 23406.44 | J65: 0 | K65: 90660.02 | L65: =Tabel2[[#This Row],[TOTAAL]]*2 -> 181320.04
F66: EDEGEM | G66: 0207537933 | H66: 84270.74 | I66: 29328.96 | J66: 49102.41 | K66: 162702.11 | L66: =Tabel2[[#This Row],[TOTAAL]]*2 -> 325404.22
F67: EEKLO | G67: 0207448158 | H67: 90293.3 | I67: 31425.01 | J67: 52285.76 | K67: 174004.07 | L67: =Tabel2[[#This Row],[TOTAAL]]*2 -> 348008.14
F68: ERPE-MERE | G68: 0216771244 | H68: 78088.71 | I68: 27177.42 | J68: 44964.63 | K68: 150230.76 | L68: =Tabel2[[#This Row],[TOTAAL]]*2 -> 300461.52
F69: ESSEN | G69: 0207537438 | H69: 74801.5 | I69: 0 | J69: 0 | K69: 74801.5 | L69: =Tabel2[[#This Row],[TOTAAL]]*2 -> 149603
F70: EVERGEM | G70: 0207451128 | H70: 137531.73 | I70: 47865.52 | J70: 79992.24 | K70: 265389.49 | L70: =Tabel2[[#This Row],[TOTAAL]]*2 -> 530778.98
F71: GALMAARDEN | G71: 0207508338 | H71: 33833.01 | I71: 0 | J71: 0 | K71: 33833.01 | L71: =Tabel2[[#This Row],[TOTAAL]]*2 -> 67666.02
F72: GAVERE | G72: 0207451326 | H72: 50080.79 | I72: 0 | J72: 0 | K72: 50080.79 | L72: =Tabel2[[#This Row],[TOTAAL]]*2 -> 100161.58
F73: GEEL | G73: 0207533874 | H73: 169394.05 | I73: 58954.65 | J73: 0 | K73: 228348.7 | L73: =Tabel2[[#This Row],[TOTAAL]]*2 -> 456697.4
F74: GEETBETS | G74: 0207518137 | H74: 24424.1 | I74: 8500.38 | J74: 0 | K74: 32924.48 | L74: =Tabel2[[#This Row],[TOTAAL]]*2 -> 65848.96
F75: GENK | G75: 0207201797 | H75: 299163.5 | I75: 104118.64 | J75: 174317.47 | K75: 577599.61 | L75: =Tabel2[[#This Row],[TOTAAL]]*2 -> 1155199.22
F76: GENT | G76: 0207451227 | H76: 1653667.88 | I76: 575530.29 | J76: 963239.45 | K76: 3192437.62 | L76: =Tabel2[[#This Row],[TOTAAL]]*2 -> 6384875.24
F77: GERAARDSBERGEN | G77: 0207485374 | H77: 135997.07 | I77: 47331.41 | J77: 0 | K77: 183328.48 | L77: =Tabel2[[#This Row],[TOTAAL]]*2 -> 366656.96
F78: GINGELOM | G78: 0207466469 | H78: 34237.54 | I78: 11915.78 | J78: 0 | K78: 46153.32 | L78: =Tabel2[[#This Row],[TOTAAL]]*2 -> 92306.64
F79: GISTEL | G79: 0207491413 | H79: 47975.07 | I79: 16696.89 | J79: 0 | K79: 64671.96 | L79: =Tabel2[[#This Row],[TOTAAL]]*2 -> 129343.92
F80: GLABBEEK | G80: 0207518335 | H80: 20555.01 | I80: 0 | J80: 0 | K80: 20555.01 | L80: =Tabel2[[#This Row],[TOTAAL]]*2 -> 41110.02
F81: GOOIK | G81: 0207508437 | H81: 36093.79 | I81: 0 | J81: 0 | K81: 36093.79 | L81: =Tabel2[[#This Row],[TOTAAL]]*2 -> 72187.58
F82: GRIMBERGEN | G82: 0207508536 | H82: 144743.86 | I82: 50375.58 | J82: 0 | K82: 195119.44 | L82: =Tabel2[[#This Row],[TOTAAL]]*2 -> 390238.88
F83: GROBBENDONK | G83: 0207501806 | H83: 43426.31 | I83: 15113.77 | J83: 0 | K83: 58540.08 | L83: =Tabel2[[#This Row],[TOTAAL]]*2 -> 117080.16
F84: HAACHT | G84: 0207518632 | H84: 57943.69 | I84: 20166.29 | J84: 33556.5 | K84: 111666.48 | L84: =Tabel2[[#This Row],[TOTAAL]]*2 -> 223332.96
F85: HAALTERT | G85: 0207439151 | H85: 72173.03 | I85: 25118.57 | J85: 0 | K85: 97291.6 | L85: =Tabel2[[#This Row],[TOTAAL]]*2 -> 194583.2
F86: HALEN | G86: 0207466766 | H86: 36783.45 | I86: 12801.84 | J86: 0 | K86: 49585.29 | L86: =Tabel2[[#This Row],[TOTAAL]]*2 -> 99170.58
F87: HALLE | G87: 0207535458 | H87: 165944.61 | I87: 57754.13 | J87: 95727.22 | K87: 319425.96 | L87: =Tabel2[[#This Row],[TOTAAL]]*2 -> 638851.92
F88: HAM | G88: 0216772234 | H88: 42969.51 | I88: 14954.79 | J88: 0 | K88: 57924.3 | L88: =Tabel2[[#This Row],[TOTAAL]]*2 -> 115848.6
F89: HAMME | G89: 0207462313 | H89: 98435.66 | I89: 34258.82 | J89: 0 | K89: 132694.48 | L89: =Tabel2[[#This Row],[TOTAAL]]*2 -> 265388.96
F90: HAMONT-ACHEL | G90: 0216772630 | H90: 57013.74 | I90: 19842.64 | J90: 0 | K90: 76856.38 | L90: =Tabel2[[#This Row],[TOTAAL]]*2 -> 153712.76
F91: HARELBEKE | G91: 0207492502 | H91: 112129.25 | I91: 39024.63 | J91: 64459.02 | K91: 215612.9 | L91: =Tabel2[[#This Row],[TOTAAL]]*2 -> 431225.8
F92: HASSELT | G92: 0207466964 | H92: 348992.76 | I92: 121460.85 | J92: 203260.95 | K92: 673714.56 | L92: =Tabel2[[#This Row],[TOTAAL]]*2 -> 1347429.12
F93: HECHTEL-EKSEL | G93: 0216772828 | H93: 50745.29 | I93: 17661.02 | J93: 0 | K93: 68406.31 | L93: =Tabel2[[#This Row],[TOTAAL]]*2 -> 136812.62
F94: HEERS | G94: 0207476862 | H94: 30421.97 | I94: 10587.84 | J94: 0 | K94: 41009.81 | L94: =Tabel2[[#This Row],[TOTAAL]]*2 -> 82019.62
F95: HEIST-OP-DEN-BERG | G95: 0207535062 | H95: 167623.55 | I95: 58338.46 | J95: 0 | K95: 225962.01 | L95: =Tabel2[[#This Row],[TOTAAL]]*2 -> 451924.02
F96: HEMIKSEM | G96: 0207506160 | H96: 45334.65 | I96: 0 | J96: 0 | K96: 45334.65 | L96: =Tabel2[[#This Row],[TOTAAL]]*2 -> 90669.3
F97: HERENT | G97: 0207519127 | H97: 83697.43 | I97: 29129.43 | J97: 0 | K97: 112826.86 | L97: =Tabel2[[#This Row],[TOTAAL]]*2 -> 225653.72
F98: HERENTALS | G98: 0207504675 | H98: 115195.67 | I98: 40091.84 | J98: 0 | K98: 155287.51 | L98: =Tabel2[[#This Row],[TOTAAL]]*2 -> 310575.02
F99: HERENTHOUT | G99: 0207502004 | H99: 36051.83 | I99: 12547.21 | J99: 0 | K99: 48599.04 | L99: =Tabel2[[#This Row],[TOTAAL]]*2 -> 97198.08
F100: HERK-DE-STAD | G100: 0207467162 | H100: 49701.45 | I100: 17297.72 | J100: 0 | K100: 66999.17 | L100: =Tabel2[[#This Row],[TOTAAL]]*2 -> 133998.34
F101: HERNE | G101: 0207533676 | H101: 26341.51 | I101: 9167.7 | J101: 0 | K101: 35509.21 | L101: =Tabel2[[#This Row],[TOTAAL]]*2 -> 71018.42
F102: HERSELT | G102: 0207502103 | H102: 57106.47 | I102: 19874.91 | J102: 0 | K102: 76981.38 | L102: =Tabel2[[#This Row],[TOTAAL]]*2 -> 153962.76
F103: HERZELE | G103: 0207439448 | H103: 71225.19 | I103: 24788.69 | J103: 0 | K103: 96013.88 | L103: =Tabel2[[#This Row],[TOTAAL]]*2 -> 192027.76
F104: HEUSDEN-ZOLDER | G104: 0216772432 | H104: 134276.18 | I104: 46732.48 | J104: 78612.24 | K104: 259620.9 | L104: =Tabel2[[#This Row],[TOTAAL]]*2 -> 519241.8
F105: HEUVELLAND | G105: 0216770056 | H105: 33947.61 | I105: 0 | J105: 0 | K105: 33947.61 | L105: =Tabel2[[#This Row],[TOTAAL]]*2 -> 67895.22
F106: HOEGAARDEN | G106: 0207519424 | H106: 26530.99 | I106: 9233.65 | J106: 15639.96 | K106: 51404.6 | L106: =Tabel2[[#This Row],[TOTAAL]]*2 -> 102809.2
F107: HOEILAART | G107: 0206562092 | H107: 42390.56 | I107: 14753.3 | J107: 25007.31 | K107: 82151.17 | L107: =Tabel2[[#This Row],[TOTAAL]]*2 -> 164302.34
F108: HOESELT | G108: 0207477852 | H108: 38582.41 | I108: 0 | J108: 0 | K108: 38582.41 | L108: =Tabel2[[#This Row],[TOTAAL]]*2 -> 77164.82
F109: HOLSBEEK | G109: 0207519622 | H109: 38289.04 | I109: 13325.83 | J109: 0 | K109: 51614.87 | L109: =Tabel2[[#This Row],[TOTAAL]]*2 -> 103229.74
F110: HOOGLEDE | G110: 0207490621 | H110: 38820.64 | I110: 13510.85 | J110: 0 | K110: 52331.49 | L110: =Tabel2[[#This Row],[TOTAAL]]*2 -> 104662.98
F111: HOOGSTRATEN | G111: 0207502202 | H111: 86938.36 | I111: 0 | J111: 0 | K111: 86938.36 | L111: =Tabel2[[#This Row],[TOTAAL]]*2 -> 173876.72
F112: HOREBEKE | G112: 0216771442 | H112: 7828.81 | I112: 2724.68 | J112: 0 | K112: 10553.49 | L112: =Tabel2[[#This Row],[TOTAAL]]*2 -> 21106.98
F113: HOUTHALEN-HELCHTEREN | G113: 0216773026 | H113: 122025.95 | I113: 42469 | J113: 0 | K113: 164494.95 | L113: =Tabel2[[#This Row],[TOTAAL]]*2 -> 328989.9
F114: HOUTHULST | G114: 0207532092 | H114: 41392.27 | I114: 0 | J114: 0 | K114: 41392.27 | L114: =Tabel2[[#This Row],[TOTAAL]]*2 -> 82784.54
F115: HOVE | G115: 0207535557 | H115: 30715.77 | I115: 10690.09 | J115: 17939.42 | K115: 59345.28 | L115: =Tabel2[[#This Row],[TOTAAL]]*2 -> 118690.56
F116: HULDENBERG | G116: 0207519820 | H116: 37817.43 | I116: 13161.7 | J116: 22097.05 | K116: 73076.18 | L116: =Tabel2[[#This Row],[TOTAAL]]*2 -> 146152.36
F117: HULSHOUT | G117: 0207502497 | H117: 40226.12 | I117: 0 | J117: 0 | K117: 40226.12 | L117: =Tabel2[[#This Row],[TOTAAL]]*2 -> 80452.24
F118: ICHTEGEM | G118: 0207431332 | H118: 55409.39 | I118: 19284.27 | J118: 0 | K118: 74693.66 | L118: =Tabel2[[#This Row],[TOTAAL]]*2 -> 149387.32
F119: IEPER | G119: 0207484681 | H119: 146123.88 | I119: 50855.87 | J119: 0 | K119: 196979.75 | L119: =Tabel2[[#This Row],[TOTAAL]]*2 -> 393959.5
F120: INGELMUNSTER | G120: 0207485473 | H120: 43304.87 | I120: 0 | J120: 0 | K120: 43304.87 | L120: =Tabel2[[#This Row],[TOTAAL]]*2 -> 86609.74
F121: IZEGEM | G121: 0207489037 | H121: 112091.54 | I121: 39011.51 | J121: 64881.21 | K121: 215984.26 | L121: =Tabel2[[#This Row],[TOTAAL]]*2 -> 431968.52
F122: JABBEKE | G122: 0207528629 | H122: 54177.24 | I122: 18855.45 | J122: 0 | K122: 73032.69 | L122: =Tabel2[[#This Row],[TOTAAL]]*2 -> 146065.38
F123: KALMTHOUT | G123: 0207540012 | H123: 72889.09 | I123: 25367.78 | J123: 0 | K123: 98256.87 | L123: =Tabel2[[#This Row],[TOTAAL]]*2 -> 196513.74
F124: KAMPENHOUT | G124: 0207533280 | H124: 46387.73 | I124: 16144.44 | J124: 0 | K124: 62532.17 | L124: =Tabel2[[#This Row],[TOTAAL]]*2 -> 125064.34
F125: KAPELLEN | G125: 0207539913 | H125: 102315.98 | I125: 35609.29 | J125: 0 | K125: 137925.27 | L125: =Tabel2[[#This Row],[TOTAAL]]*2 -> 275850.54
F126: KAPELLE-OP-DEN-BOS | G126: 0207534468 | H126: 36652.12 | I126: 0 | J126: 0 | K126: 36652.12 | L126: =Tabel2[[#This Row],[TOTAAL]]*2 -> 73304.24
F127: KAPRIJKE | G127: 0207448356 | H127: 25510.87 | I127: 0 | J127: 0 | K127: 25510.87 | L127: =Tabel2[[#This Row],[TOTAAL]]*2 -> 51021.74
F128: KASTERLEE | G128: 0207502596 | H128: 73967.85 | I128: 25743.22 | J128: 0 | K128: 99711.07 | L128: =Tabel2[[#This Row],[TOTAAL]]*2 -> 199422.14
F129: KEERBERGEN | G129: 0207520117 | H129: 48201.33 | I129: 16775.63 | J129: 0 | K129: 64976.96 | L129: =Tabel2[[#This Row],[TOTAAL]]*2 -> 129953.92
F130: KINROOI | G130: 0207472904 | H130: 49194.46 | I130: 17121.27 | J130: 0 | K130: 66315.73 | L130: =Tabel2[[#This Row],[TOTAAL]]*2 -> 132631.46
F131: KLUISBERGEN | G131: 0207690757 | H131: 26434.7 | I131: 9200.14 | J131: 0 | K131: 35634.84 | L131: =Tabel2[[#This Row],[TOTAAL]]*2 -> 71269.68
F132: KNOKKE-HEIST | G132: 0207691252 | H132: 127630.65 | I132: 44419.62 | J132: 75332.58 | K132: 247382.85 | L132: =Tabel2[[#This Row],[TOTAAL]]*2 -> 494765.7
F133: KOEKELARE | G133: 0207532389 | H133: 34917.23 | I133: 0 | J133: 0 | K133: 34917.23 | L133: =Tabel2[[#This Row],[TOTAAL]]*2 -> 69834.46
F134: KOKSIJDE | G134: 0207494480 | H134: 82421.16 | I134: 28685.25 | J134: 48320.47 | K134: 159426.88 | L134: =Tabel2[[#This Row],[TOTAAL]]*2 -> 318853.76
F135: KONTICH | G135: 0207536250 | H135: 80842.95 | I135: 28135.98 | J135: 47174.51 | K135: 156153.44 | L135: =Tabel2[[#This Row],[TOTAAL]]*2 -> 312306.88
F136: KORTEMARK | G136: 0207532488 | H136: 50783.65 | I136: 0 | J136: 0 | K136: 50783.65 | L136: =Tabel2[[#This Row],[TOTAAL]]*2 -> 101567.3
F137: KORTENAKEN | G137: 0207520711 | H137: 31142.93 | I137: 10838.76 | J137: 0 | K137: 41981.69 | L137: =Tabel2[[#This Row],[TOTAAL]]*2 -> 83963.38
F138: KORTENBERG | G138: 0207520810 | H138: 76335.91 | I138: 26567.38 | J138: 0 | K138: 102903.29 | L138: =Tabel2[[#This Row],[TOTAAL]]*2 -> 205806.58
F139: KORTESSEM | G139: 0207478545 | H139: 33613.06 | I139: 11698.44 | J139: 0 | K139: 45311.5 | L139: =Tabel2[[#This Row],[TOTAAL]]*2 -> 90623
F140: KORTRIJK | G140: 0207494678 | H140: 345274.62 | I140: 120166.82 | J140: 200838.83 | K140: 666280.27 | L140: =Tabel2[[#This Row],[TOTAAL]]*2 -> 1332560.54
F141: KRAAINEM | G141: 0207484285 | H141: 50953.43 | I141: 0 | J141: 0 | K141: 50953.43 | L141: =Tabel2[[#This Row],[TOTAAL]]*2 -> 101906.86
F142: KRUIBEKE | G142: 0207463303 | H142: 65461.86 | I142: 22782.86 | J142: 0 | K142: 88244.72 | L142: =Tabel2[[#This Row],[TOTAAL]]*2 -> 176489.44
F143: KRUISEM | G143: 0697608954 | H143: 61149.98 | I143: 0 | J143: 0 | K143: 61149.98 | L143: =Tabel2[[#This Row],[TOTAAL]]*2 -> 122299.96
F144: KUURNE | G144: 0207430342 | H144: 53972.68 | I144: 18784.25 | J144: 31210.25 | K144: 103967.18 | L144: =Tabel2[[#This Row],[TOTAAL]]*2 -> 207934.36
F145: LAAKDAL | G145: 0216769066 | H145: 63749.22 | I145: 22186.81 | J145: 0 | K145: 85936.03 | L145: =Tabel2[[#This Row],[TOTAAL]]*2 -> 171872.06
F146: LAARNE | G146: 0207445881 | H146: 47325.31 | I146: 16470.75 | J146: 0 | K146: 63796.06 | L146: =Tabel2[[#This Row],[TOTAAL]]*2 -> 127592.12
F147: LANAKEN | G147: 0207478743 | H147: 102527.7 | I147: 35682.98 | J147: 0 | K147: 138210.68 | L147: =Tabel2[[#This Row],[TOTAAL]]*2 -> 276421.36
F148: LANDEN | G148: 0207521206 | H148: 63196.34 | I148: 0 | J148: 0 | K148: 63196.34 | L148: =Tabel2[[#This Row],[TOTAAL]]*2 -> 126392.68
F149: LANGEMARK-POELKAPELLE | G149: 0216770254 | H149: 31754.89 | I149: 11051.74 | J149: 0 | K149: 42806.63 | L149: =Tabel2[[#This Row],[TOTAAL]]*2 -> 85613.26
F150: LEBBEKE | G150: 0207446079 | H150: 75321.8 | I150: 26214.44 | J150: 43757.38 | K150: 145293.62 | L150: =Tabel2[[#This Row],[TOTAAL]]*2 -> 290587.24
F151: LEDE | G151: 0207440438 | H151: 72814.06 | I151: 25341.67 | J151: 42521.14 | K151: 140676.87 | L151: =Tabel2[[#This Row],[TOTAAL]]*2 -> 281353.74
F152: LEDEGEM | G152: 0207487354 | H152: 37630.18 | I152: 13096.53 | J152: 0 | K152: 50726.71 | L152: =Tabel2[[#This Row],[TOTAAL]]*2 -> 101453.42
F153: LENDELEDE | G153: 0207491710 | H153: 22329.44 | I153: 7771.37 | J153: 0 | K153: 30100.81 | L153: =Tabel2[[#This Row],[TOTAAL]]*2 -> 60201.62
F154: LENNIK | G154: 0216769264 | H154: 35698.54 | I154: 12424.26 | J154: 0 | K154: 48122.8 | L154: =Tabel2[[#This Row],[TOTAAL]]*2 -> 96245.6
F155: LEOPOLDSBURG | G155: 0207468152 | H155: 63447.02 | I155: 22081.63 | J155: 0 | K155: 85528.65 | L155: =Tabel2[[#This Row],[TOTAAL]]*2 -> 171057.3
F156: LEUVEN | G156: 0207521503 | H156: 477615.37 | I156: 166225.71 | J156: 277302.64 | K156: 921143.72 | L156: =Tabel2[[#This Row],[TOTAAL]]*2 -> 1842287.44
F157: LICHTERVELDE | G157: 0207435785 | H157: 34873.49 | I157: 0 | J157: 0 | K157: 34873.49 | L157: =Tabel2[[#This Row],[TOTAAL]]*2 -> 69746.98
F158: LIEDEKERKE | G158: 0207538725 | H158: 52463.15 | I158: 0 | J158: 0 | K158: 52463.15 | L158: =Tabel2[[#This Row],[TOTAAL]]*2 -> 104926.3
F159: LIER | G159: 0207502301 | H159: 152217.27 | I159: 52976.57 | J159: 0 | K159: 205193.84 | L159: =Tabel2[[#This Row],[TOTAAL]]*2 -> 410387.68
F160: LIERDE | G160: 0216771640 | H160: 25991.97 | I160: 9046.05 | J160: 0 | K160: 35038.02 | L160: =Tabel2[[#This Row],[TOTAAL]]*2 -> 70076.04
F161: LIEVEGEM | G161: 0697609152 | H161: 103154.53 | I161: 35901.14 | J161: 59898.24 | K161: 198953.91 | L161: =Tabel2[[#This Row],[TOTAAL]]*2 -> 397907.82
F162: LILLE | G162: 0207502794 | H162: 64480.17 | I162: 22441.2 | J162: 0 | K162: 86921.37 | L162: =Tabel2[[#This Row],[TOTAAL]]*2 -> 173842.74
F163: LINKEBEEK | G163: 0207484384 | H163: 17385.77 | I163: 0 | J163: 0 | K163: 17385.77 | L163: =Tabel2[[#This Row],[TOTAAL]]*2 -> 34771.54
F164: LINT | G164: 0207501410 | H164: 31996.84 | I164: 0 | J164: 0 | K164: 31996.84 | L164: =Tabel2[[#This Row],[TOTAAL]]*2 -> 63993.68
F165: LINTER | G165: 0207368380 | H165: 28335.21 | I165: 9861.57 | J165: 0 | K165: 38196.78 | L165: =Tabel2[[#This Row],[TOTAAL]]*2 -> 76393.56
F166: LOCHRISTI | G166: 0207452514 | H166: 86499.47 | I166: 30104.63 | J166: 0 | K166: 116604.1 | L166: =Tabel2[[#This Row],[TOTAAL]]*2 -> 233208.2
F167: LOKEREN | G167: 0207463402 | H167: 173560.84 | I167: 60404.82 | J167: 0 | K167: 233965.66 | L167: =Tabel2[[#This Row],[TOTAAL]]*2 -> 467931.32
F168: LOMMEL | G168: 0207473102 | H168: 134350.13 | I168: 46758.22 | J168: 78419.65 | K168: 259528 | L168: =Tabel2[[#This Row],[TOTAAL]]*2 -> 519056
F169: LONDERZEEL | G169: 0207535755 | H169: 72428.28 | I169: 25207.4 | J169: 0 | K169: 97635.68 | L169: =Tabel2[[#This Row],[TOTAAL]]*2 -> 195271.36
F170: LO-RENINGE | G170: 0216769858 | H170: 14294.61 | I170: 4974.99 | J170: 0 | K170: 19269.6 | L170: =Tabel2[[#This Row],[TOTAAL]]*2 -> 38539.2
F171: LUBBEEK | G171: 0207521996 | H171: 55339.19 | I171: 0 | J171: 0 | K171: 55339.19 | L171: =Tabel2[[#This Row],[TOTAAL]]*2 -> 110678.38
F172: LUMMEN | G172: 0207468350 | H172: 58605.34 | I172: 20396.57 | J172: 0 | K172: 79001.91 | L172: =Tabel2[[#This Row],[TOTAAL]]*2 -> 158003.82
F173: MAARKEDAL | G173: 0216771838 | H173: 25115.27 | I173: 0 | J173: 0 | K173: 25115.27 | L173: =Tabel2[[#This Row],[TOTAAL]]*2 -> 50230.54
F174: MAASEIK | G174: 0207473201 | H174: 102046.91 | I174: 35515.65 | J174: 0 | K174: 137562.56 | L174: =Tabel2[[#This Row],[TOTAAL]]*2 -> 275125.12
F175: MAASMECHELEN | G175: 0207691351 | H175: 160689.41 | I175: 55925.15 | J175: 0 | K175: 216614.56 | L175: =Tabel2[[#This Row],[TOTAAL]]*2 -> 433229.12
F176: MACHELEN | G176: 0207539121 | H176: 63441.65 | I176: 22079.76 | J176: 0 | K176: 85521.41 | L176: =Tabel2[[#This Row],[TOTAAL]]*2 -> 171042.82
F177: MALDEGEM | G177: 0207448554 | H177: 95536.37 | I177: 33249.77 | J177: 55301.23 | K177: 184087.37 | L177: =Tabel2[[#This Row],[TOTAAL]]*2 -> 368174.74
F178: MALLE | G178: 0207537240 | H178: 61706.31 | I178: 0 | J178: 0 | K178: 61706.31 | L178: =Tabel2[[#This Row],[TOTAAL]]*2 -> 123412.62
F179: MECHELEN | G179: 0207499430 | H179: 387091.1 | I179: 134720.31 | J179: 226168.56 | K179: 747979.97 | L179: =Tabel2[[#This Row],[TOTAAL]]*2 -> 1495959.94
F180: MEERHOUT | G180: 0207502992 | H180: 39388.34 | I180: 13708.43 | J180: 0 | K180: 53096.77 | L180: =Tabel2[[#This Row],[TOTAAL]]*2 -> 106193.54
F181: MEISE | G181: 0207511011 | H181: 74404.67 | I181: 25895.25 | J181: 43141.46 | K181: 143441.38 | L181: =Tabel2[[#This Row],[TOTAAL]]*2 -> 286882.76
F182: MELLE | G182: 0207453009 | H182: 45554.11 | I182: 15854.31 | J182: 0 | K182: 61408.42 | L182: =Tabel2[[#This Row],[TOTAAL]]*2 -> 122816.84
F183: MENEN | G183: 0207433312 | H183: 135452.93 | I183: 47142.03 | J183: 78687.77 | K183: 261282.73 | L183: =Tabel2[[#This Row],[TOTAAL]]*2 -> 522565.46
F184: MERCHTEM | G184: 0207511110 | H184: 66806.71 | I184: 23250.91 | J184: 0 | K184: 90057.62 | L184: =Tabel2[[#This Row],[TOTAAL]]*2 -> 180115.24
F185: MERELBEKE | G185: 0207453207 | H185: 93997.56 | I185: 32714.21 | J185: 54804.77 | K185: 181516.54 | L185: =Tabel2[[#This Row],[TOTAAL]]*2 -> 363033.08
F186: MERKSPLAS | G186: 0207503190 | H186: 33974.22 | I186: 11824.13 | J186: 0 | K186: 45798.35 | L186: =Tabel2[[#This Row],[TOTAAL]]*2 -> 91596.7
F187: MEULEBEKE | G187: 0207489829 | H187: 42803.08 | I187: 14896.87 | J187: 0 | K187: 57699.95 | L187: =Tabel2[[#This Row],[TOTAAL]]*2 -> 115399.9
F188: MOERBEKE | G188: 0207453405 | H188: 26345.51 | I188: 0 | J188: 0 | K188: 26345.51 | L188: =Tabel2[[#This Row],[TOTAAL]]*2 -> 52691.02
F189: MOL | G189: 0207503388 | H189: 153194.44 | I189: 53316.66 | J189: 0 | K189: 206511.1 | L189: =Tabel2[[#This Row],[TOTAAL]]*2 -> 413022.2
F190: MOORSLEDE | G190: 0207431629 | H190: 44595.52 | I190: 15520.69 | J190: 0 | K190: 60116.21 | L190: =Tabel2[[#This Row],[TOTAAL]]*2 -> 120232.42
F191: MORTSEL | G191: 0207536646 | H191: 99399.38 | I191: 0 | J191: 0 | K191: 99399.38 | L191: =Tabel2[[#This Row],[TOTAAL]]*2 -> 198798.76
F192: NAZARETH | G192: 0207453801 | H192: 45733.16 | I192: 15916.63 | J192: 0 | K192: 61649.79 | L192: =Tabel2[[#This Row],[TOTAAL]]*2 -> 123299.58
F193: NIEL | G193: 0207536151 | H193: 40916.13 | I193: 14240.14 | J193: 0 | K193: 55156.27 | L193: =Tabel2[[#This Row],[TOTAAL]]*2 -> 110312.54
F194: NIEUWERKERKEN | G194: 0207469142 | H194: 27181.21 | I194: 9459.94 | J194: 0 | K194: 36641.15 | L194: =Tabel2[[#This Row],[TOTAAL]]*2 -> 73282.3
F195: NIEUWPOORT | G195: 0207485869 | H195: 46591.05 | I195: 16215.2 | J195: 0 | K195: 62806.25 | L195: =Tabel2[[#This Row],[TOTAAL]]*2 -> 125612.5
F196: NIJLEN | G196: 0206636526 | H196: 89147.07 | I196: 31026.09 | J196: 51721.57 | K196: 171894.73 | L196: =Tabel2[[#This Row],[TOTAAL]]*2 -> 343789.46
F197: NINOVE | G197: 0207441527 | H197: 154606.06 | I197: 53807.94 | J197: 0 | K197: 208414 | L197: =Tabel2[[#This Row],[TOTAAL]]*2 -> 416828
F198: OLEN | G198: 0207503784 | H198: 47774.62 | I198: 16627.12 | J198: 0 | K198: 64401.74 | L198: =Tabel2[[#This Row],[TOTAAL]]*2 -> 128803.48
F199: OOSTENDE | G199: 0207436775 | H199: 331991.87 | I199: 115543.98 | J199: 195070.87 | K199: 642606.72 | L199: =Tabel2[[#This Row],[TOTAAL]]*2 -> 1285213.44
F200: OOSTERZELE | G200: 0207454294 | H200: 52739.78 | I200: 18355.16 | J200: 0 | K200: 71094.94 | L200: =Tabel2[[#This Row],[TOTAAL]]*2 -> 142189.88
F201: OOSTKAMP | G201: 0207529520 | H201: 91762.64 | I201: 31936.39 | J201: 0 | K201: 123699.03 | L201: =Tabel2[[#This Row],[TOTAAL]]*2 -> 247398.06
... 95 more rows
